Workbook

Sheet 8200HV
A1: Input Voltage | B1: Input Current | C1: Output Voltage | D1: Output Current | F1: Input Power | G1: Output Power | H1: % Efficiency
A2: 3 | B2: 0.079 | C2: 171.4 | D2: 0.001 | F2: =A2*B2 -> 0.237 | G2: =C2*D2 -> 0.1714 | H2: =G2/F2 -> 0.7232067511
A3: 3 | B3: 0.145 | C3: 170.6 | D3: 0.002 | F3: =A3*B3 -> 0.435 | G3: =C3*D3 -> 0.3412 | H3: =G3/F3 -> 0.7843678161
A4: 3 | B4: 0.202 | C4: 170.7 | D4: 0.003 | F4: 0.606 | G4: 0.5121 | H4: 0.845049505
A5: 3 | B5: 0.27 | C5: 170.4 | D5: 0.004 | F5: 0.81 | G5: 0.6816 | H5: 0.8414814815
A6: 3 | B6: 0.337 | C6: 170.3 | D6: 0.005 | F6: 1.011 | G6: 0.8515 | H6: 0.8422354105
A7: 3 | B7: 0.405 | C7: 170.2 | D7: 0.006 | F7: 1.215 | G7: 1.0212 | H7: 0.8404938272
A8: 3 | B8: 0.471 | C8: 170 | D8: 0.007 | F8: 1.413 | G8: 1.19 | H8: 0.8421797594
A9: 3 | B9: 0.537 | C9: 169.9 | D9: 0.008 | F9: 1.611 | G9: 1.3592 | H9: 0.8436995655
A10: 3 | B10: 0.605 | C10: 169.9 | D10: 0.009 | F10: 1.815 | G10: 1.5291 | H10: 0.8424793388
A11: 3 | B11: 0.676 | C11: 169.8 | D11: 0.01 | F11: 2.028 | G11: 1.698 | H11: 0.8372781065
A12: 3 | B12: 0.747 | C12: 169.6 | D12: 0.011 | F12: 2.241 | G12: 1.8656 | H12: 0.8324854975
A13: 3 | B13: 0.829 | C13: 169.5 | D13: 0.012 | F13: 2.487 | G13: 2.034 | H13: 0.8178528347
A14: 3 | B14: 0.897 | C14: 169.5 | D14: 0.013 | F14: 2.691 | G14: 2.2035 | H14: 0.8188405797
A15: 3 | B15: 0.968 | C15: 169.4 | D15: 0.014 | F15: 2.904 | G15: 2.3716 | H15: 0.8166666667
A17: 5 | B17: 0.045 | C17: 171.6 | D17: 0.001 | F17: 0.225 | G17: 0.1716 | H17: 0.7626666667
A18: 5 | B18: 0.088 | C18: 171.5 | D18: 0.002 | F18: 0.44 | G18: 0.343 | H18: 0.7795454545
A19: 5 | B19: 0.122 | C19: 171.1 | D19: 0.003 | F19: 0.61 | G19: 0.5133 | H19: 0.8414754098
A20: 5 | B20: 0.16 | C20: 170.9 | D20: 0.004 | F20: 0.8 | G20: 0.6836 | H20: 0.8545
A21: 5 | B21: 0.201 | C21: 170.8 | D21: 0.005 | F21: 1.005 | G21: 0.854 | H21: 0.8497512438
A22: 5 | B22: 0.24 | C22: 170.7 | D22: 0.006 | F22: 1.2 | G22: 1.0242 | H22: 0.8535
A23: 5 | B23: 0.276 | C23: 170.7 | D23: 0.007 | F23: 1.38 | G23: 1.1949 | H23: 0.8658695652
A24: 5 | B24: 0.31 | C24: 170.7 | D24: 0.008 | F24: 1.55 | G24: 1.3656 | H24: 0.8810322581
A25: 5 | B25: 0.349 | C25: 170.5 | D25: 0.009 | F25: 1.745 | G25: 1.5345 | H25: 0.8793696275
A26: 5 | B26: 0.39 | C26: 170.4 | D26: 0.01 | F26: =A26*B26 -> 1.95 | G26: =C26*D26 -> 1.704 | H26: =G26/F26 -> 0.8738461538
A27: 5 | B27: 0.432 | C27: 170.4 | D27: 0.011 | F27: 2.16 | G27: 1.8744 | H27: 0.8677777778
A28: 5 | B28: 0.47 | C28: 170.3 | D28: 0.012 | F28: 2.35 | G28: 2.0436 | H28: 0.8696170213
A29: 5 | B29: 0.508 | C29: 170.3 | D29: 0.013 | F29: 2.54 | G29: 2.2139 | H29: 0.8716141732
A30: 5 | B30: 0.546 | C30: 170.3 | D30: 0.014 | F30: 2.73 | G30: 2.3842 | H30: 0.8733333333
A31: 5 | B31: 0.582 | C31: 170.3 | D31: 0.015 | F31: 2.91 | G31: 2.5545 | H31: 0.8778350515
A32: 5 | B32: 0.622 | C32: 170.1 | D32: 0.016 | F32: 3.11 | G32: 2.7216 | H32: 0.8751125402
A33: 5 | B33: 0.664 | C33: 170 | D33: 0.017 | F33: 3.32 | G33: 2.89 | H33: 0.8704819277
A34: 5 | B34: 0.708 | C34: 170 | D34: 0.018 | F34: 3.54 | G34: 3.06 | H34: 0.8644067797
A35: 5 | B35: 0.752 | C35: 170 | D35: 0.019 | F35: 3.76 | G35: 3.23 | H35: 0.8590425532
A36: 5 | B36: 0.794 | C36: 169.9 | D36: 0.02 | F36: 3.97 | G36: 3.398 | H36: 0.8559193955
A37: 5 | B37: 0.835 | C37: 169.8 | D37: 0.021 | F37: =A37*B37 -> 4.175 | G37: =C37*D37 -> 3.5658 | H37: =G37/F37 -> 0.8540838323
A38: 5 | B38: 0.874 | C38: 169.8 | D38: 0.022 | F38: 4.37 | G38: 3.7356 | H38: 0.8548283753
A39: 5 | B39: 0.916 | C39: 169.8 | D39: 0.023 | F39: 4.58 | G39: 3.9054 | H39: 0.8527074236
A40: 5 | B40: 0.954 | C40: 169.7 | D40: 0.024 | F40: 4.77 | G40: 4.0728 | H40: 0.853836478
A41: 5 | B41: 0.998 | C41: 169.4 | D41: 0.025 | F41: 4.99 | G41: 4.235 | H41: 0.8486973948
A43: 9 | B43: 0.025 | C43: 171.5 | D43: 0.001 | F43: =A43*B43 -> 0.225 | G43: =C43*D43 -> 0.1715 | H43: =G43/F43 -> 0.7622222222
A44: 9 | B44: 0.048 | C44: 171.5 | D44: 0.002 | F44: =A44*B44 -> 0.432 | G44: =C44*D44 -> 0.343 | H44: =G44/F44 -> 0.7939814815
A45: 9 | B45: 0.07 | C45: 171.2 | D45: 0.003 | F45: 0.63 | G45: 0.5136 | H45: 0.8152380952
A46: 9 | B46: 0.093 | C46: 171.1 | D46: 0.004 | F46: =A46*B46 -> 0.837 | G46: =C46*D46 -> 0.6844 | H46: =G46/F46 -> 0.8176821983
A47: 9 | B47: 0.115 | C47: 171.1 | D47: 0.005 | F47: 1.035 | G47: 0.8555 | H47: 0.8265700483
A48: 9 | B48: 0.139 | C48: 171 | D48: 0.006 | F48: 1.251 | G48: 1.026 | H48: 0.8201438849
A49: 9 | B49: 0.161 | C49: 171 | D49: 0.007 | F49: 1.449 | G49: 1.197 | H49: 0.8260869565
A50: 9 | B50: 0.18 | C50: 171 | D50: 0.008 | F50: 1.62 | G50: 1.368 | H50: 0.8444444444
A51: 9 | B51: 0.197 | C51: 171 | D51: 0.009 | F51: 1.773 | G51: 1.539 | H51: 0.8680203046
A52: 9 | B52: 0.217 | C52: 170.9 | D52: 0.01 | F52: 1.953 | G52: 1.709 | H52: 0.8750640041
A53: 9 | B53: 0.234 | C53: 171 | D53: 0.011 | F53: 2.106 | G53: 1.881 | H53: 0.8931623932
A54: 9 | B54: 0.255 | C54: 170.9 | D54: 0.012 | F54: 2.295 | G54: 2.0508 | H54: 0.8935947712
A55: 9 | B55: 0.278 | C55: 170.8 | D55: 0.013 | F55: =A55*B55 -> 2.502 | G55: =C55*D55 -> 2.2204 | H55: =G55/F55 -> 0.88745004
A56: 9 | B56: 0.301 | C56: 170.7 | D56: 0.014 | F56: 2.709 | G56: 2.3898 | H56: 0.8821705426
A57: 9 | B57: 0.324 | C57: 170.6 | D57: 0.015 | F57: 2.916 | G57: 2.559 | H57: 0.8775720165
A58: 9 | B58: 0.345 | C58: 170.6 | D58: 0.016 | F58: 3.105 | G58: 2.7296 | H58: 0.8790982287
A59: 9 | B59: 0.367 | C59: 170.6 | D59: 0.017 | F59: 3.303 | G59: 2.9002 | H59: 0.8780502573
A60: 9 | B60: 0.387 | C60: 170.5 | D60: 0.018 | F60: 3.483 | G60: 3.069 | H60: 0.8811369509
A61: 9 | B61: 0.407 | C61: 170.5 | D61: 0.019 | F61: 3.663 | G61: 3.2395 | H61: 0.8843843844
A62: 9 | B62: 0.425 | C62: 170.5 | D62: 0.02 | F62: 3.825 | G62: 3.41 | H62: 0.891503268
A63: 9 | B63: 0.446 | C63: 170.5 | D63: 0.021 | F63: 4.014 | G63: 3.5805 | H63: 0.8920029895
A64: 9 | B64: 0.467 | C64: 170.5 | D64: 0.022 | F64: 4.203 | G64: 3.751 | H64: 0.8924577683
A65: 9 | B65: 0.485 | C65: 170.5 | D65: 0.023 | F65: 4.365 | G65: 3.9215 | H65: 0.8983963345
A66: 9 | B66: 0.505 | C66: 170.5 | D66: 0.024 | F66: 4.545 | G66: 4.092 | H66: 0.900330033
A67: 9 | B67: 0.528 | C67: 170.3 | D67: 0.025 | F67: 4.752 | G67: 4.2575 | H67: 0.8959385522
A69: 12 | B69: 0.019 | C69: 171.6 | D69: 0.001 | F69: =A69*B69 -> 0.228 | G69: =C69*D69 -> 0.1716 | H69: =G69/F69 -> 0.7526315789
A70: 12 | B70: 0.036 | C70: 171.6 | D70: 0.002 | F70: 0.432 | G70: 0.3432 | H70: 0.7944444444
A71: 12 | B71: 0.053 | C71: 171.5 | D71: 0.003 | F71: 0.636 | G71: 0.5145 | H71: 0.8089622642
A72: 12 | B72: 0.07 | C72: 171.4 | D72: 0.004 | F72: 0.84 | G72: 0.6856 | H72: 0.8161904762
A73: 12 | B73: 0.086 | C73: 171.4 | D73: 0.005 | F73: 1.032 | G73: 0.857 | H73: 0.8304263566
A74: 12 | B74: 0.101 | C74: 171.3 | D74: 0.006 | F74: 1.212 | G74: 1.0278 | H74: 0.848019802
A75: 12 | B75: 0.119 | C75: 171.2 | D75: 0.007 | F75: 1.428 | G75: 1.1984 | H75: 0.8392156863
A76: 12 | B76: 0.136 | C76: 171.1 | D76: 0.008 | F76: 1.632 | G76: 1.3688 | H76: 0.8387254902
A77: 12 | B77: 0.152 | C77: 171.1 | D77: 0.009 | F77: 1.824 | G77: 1.5399 | H77: 0.8442434211
A78: 12 | B78: 0.167 | C78: 171.1 | D78: 0.01 | F78: 2.004 | G78: 1.711 | H78: 0.8537924152
A79: 12 | B79: 0.183 | C79: 171 | D79: 0.011 | F79: 2.196 | G79: 1.881 | H79: 0.856557377
A80: 12 | B80: 0.198 | C80: 171 | D80: 0.012 | F80: 2.376 | G80: 2.052 | H80: 0.8636363636
A81: 12 | B81: 0.213 | C81: 171 | D81: 0.013 | F81: 2.556 | G81: 2.223 | H81: 0.8697183099
A82: 12 | B82: 0.227 | C82: 171 | D82: 0.014 | F82: 2.724 | G82: 2.394 | H82: 0.8788546256
A83: 12 | B83: 0.244 | C83: 170.9 | D83: 0.015 | F83: 2.928 | G83: 2.5635 | H83: 0.8755122951
A84: 12 | B84: 0.259 | C84: 170.8 | D84: 0.016 | F84: 3.108 | G84: 2.7328 | H84: 0.8792792793
A85: 12 | B85: 0.273 | C85: 171 | D85: 0.017 | F85: 3.276 | G85: 2.907 | H85: 0.8873626374
A86: 12 | B86: 0.285 | C86: 171 | D86: 0.018 | F86: 3.42 | G86: 3.078 | H86: 0.9
A87: 12 | B87: 0.302 | C87: 170.9 | D87: 0.019 | F87: 3.624 | G87: 3.2471 | H87: 0.8959988962
A88: 12 | B88: 0.323 | C88: 170.4 | D88: 0.02 | F88: 3.876 | G88: 3.408 | H88: 0.8792569659
A89: 12 | B89: 0.337 | C89: 170.3 | D89: 0.021 | F89: 4.044 | G89: 3.5763 | H89: 0.884347181
A90: 12 | B90: 0.354 | C90: 170.3 | D90: 0.022 | F90: 4.248 | G90: 3.7466 | H90: 0.8819679849
A91: 12 | B91: 0.368 | C91: 170.3 | D91: 0.023 | F91: 4.416 | G91: 3.9169 | H91: 0.8869791667
A92: 12 | B92: 0.385 | C92: 170.4 | D92: 0.024 | F92: 4.62 | G92: 4.0896 | H92: 0.8851948052
A93: 12 | B93: 0.401 | C93: 170.5 | D93: 0.025 | F93: 4.812 | G93: 4.2625 | H93: 0.8858063175

Sheet Rev. A
A1: Input Voltage | B1: Input Current | C1: Output Voltage | D1: Output Current | F1: Input Power | G1: Output Power | H1: % Efficiency
A2: 3 | B2: 0.114 | C2: 197 | D2: 0.001 | F2: =A2*B2 -> 0.342 | G2: =C2*D2 -> 0.197 | H2: =G2/F2 -> 0.5760233918
A3: 3 | B3: 0.201 | C3: 197.1 | D3: 0.002 | F3: =A3*B3 -> 0.603 | G3: =C3*D3 -> 0.3942 | H3: =G3/F3 -> 0.6537313433
A4: 3 | B4: 0.292 | C4: 197.2 | D4: 0.003 | F4: =A4*B4 -> 0.876 | G4: =C4*D4 -> 0.5916 | H4: =G4/F4 -> 0.6753424658
A5: 3 | B5: 0.387 | C5: 197.2 | D5: 0.004 | F5: 1.161 | G5: 0.7888 | H5: 0.679414298
A6: 3 | B6: 0.485 | C6: 197.3 | D6: 0.005 | F6: 1.455 | G6: 0.9865 | H6: 0.6780068729
A7: 3 | B7: 0.586 | C7: 197.4 | D7: 0.006 | F7: 1.758 | G7: 1.1844 | H7: 0.6737201365
A8: 3 | B8: 0.69 | C8: 197.4 | D8: 0.007 | F8: 2.07 | G8: 1.3818 | H8: 0.6675362319
A9: 3 | B9: 0.794 | C9: 197.5 | D9: 0.008 | F9: 2.382 | G9: 1.58 | H9: 0.6633081444
A10: 3 | B10: 0.896 | C10: 197.6 | D10: 0.009 | F10: 2.688 | G10: 1.7784 | H10: 0.6616071429
A11: 3 | B11: 1 | C11: 197.6 | D11: 0.01 | F11: 3 | G11: 1.976 | H11: 0.6586666667
A12: 3 | B12: 1.108 | C12: 197.6 | D12: 0.011 | F12: 3.324 | G12: 2.1736 | H12: 0.6539109507
A13: 3 | B13: 1.218 | C13: 197.6 | D13: 0.012 | F13: 3.654 | G13: 2.3712 | H13: 0.6489326765
A14: 3 | B14: 1.333 | C14: 197.6 | D14: 0.013 | F14: 3.999 | G14: 2.5688 | H14: 0.6423605901
A15: 3 | B15: 1.448 | C15: 197.6 | D15: 0.014 | F15: 4.344 | G15: 2.7664 | H15: 0.6368324125
A16: 3 | B16: 1.566 | C16: 197.6 | D16: 0.015 | F16: 4.698 | G16: 2.964 | H16: 0.6309067688
A17: 3 | D17: 0.016 | F17: 0 | G17: 0
A18: 3 | D18: 0.017 | F18: =A18*B18 -> 0 | G18: =C18*D18 -> 0 | H18: =G18/F18 ->  | J18: Started smoking
A20: 5 | B20: 0.06 | C20: 197.2 | D20: 0.001 | F20: =A20*B20 -> 0.3 | G20: =C20*D20 -> 0.1972 | H20: =G20/F20 -> 0.6573333333
A21: 5 | B21: 0.102 | C21: 197.1 | D21: 0.002 | F21: 0.51 | G21: 0.3942 | H21: 0.7729411765
A22: 5 | B22: 0.145 | C22: 197.1 | D22: 0.003 | F22: =A22*B22 -> 0.725 | G22: =C22*D22 -> 0.5913 | H22: =G22/F22 -> 0.8155862069
A23: 5 | B23: 0.187 | C23: 197.1 | D23: 0.004 | F23: 0.935 | G23: 0.7884 | H23: 0.8432085561
A24: 5 | B24: 0.229 | C24: 197.1 | D24: 0.005 | F24: 1.145 | G24: 0.9855 | H24: 0.86069869
A25: 5 | B25: 0.272 | C25: 197 | D25: 0.006 | F25: 1.36 | G25: 1.182 | H25: 0.8691176471
A26: 5 | B26: 0.315 | C26: 197 | D26: 0.007 | F26: 1.575 | G26: 1.379 | H26: 0.8755555556
A27: 5 | B27: 0.358 | C27: 197 | D27: 0.008 | F27: 1.79 | G27: 1.576 | H27: 0.8804469274
A28: 5 | B28: 0.401 | C28: 197 | D28: 0.009 | F28: 2.005 | G28: 1.773 | H28: 0.8842892768
A29: 5 | B29: 0.446 | C29: 197 | D29: 0.01 | F29: 2.23 | G29: 1.97 | H29: 0.8834080717
A30: 5 | B30: 0.49 | C30: 197 | D30: 0.011 | F30: 2.45 | G30: 2.167 | H30: 0.8844897959
A31: 5 | B31: 0.533 | C31: 197 | D31: 0.012 | F31: 2.665 | G31: 2.364 | H31: 0.887054409
A32: 5 | B32: 0.577 | C32: 197 | D32: 0.013 | F32: 2.885 | G32: 2.561 | H32: 0.887694974
A33: 5 | B33: 0.621 | C33: 197.1 | D33: 0.014 | F33: 3.105 | G33: 2.7594 | H33: 0.8886956522
A34: 5 | B34: 0.667 | C34: 197.1 | D34: 0.015 | F34: 3.335 | G34: 2.9565 | H34: 0.8865067466
A35: 5 | B35: 0.714 | C35: 197.1 | D35: 0.016 | F35: 3.57 | G35: 3.1536 | H35: 0.8833613445
A36: 5 | B36: 0.759 | C36: 197.1 | D36: 0.017 | F36: 3.795 | G36: 3.3507 | H36: 0.8829249012
A37: 5 | B37: 0.806 | C37: 197.1 | D37: 0.018 | F37: 4.03 | G37: 3.5478 | H37: 0.8803473945
A38: 5 | B38: 0.846 | C38: 196.7 | D38: 0.019 | F38: 4.23 | G38: 3.7373 | H38: 0.8835224586
A39: 5 | B39: 0.836 | C39: 184.6 | D39: 0.02 | F39: 4.18 | G39: 3.692 | H39: 0.8832535885
A40: 5 | B40: 0.835 | C40: 175.7 | D40: 0.021 | F40: 4.175 | G40: 3.6897 | H40: 0.883760479
A41: 5 | B41: 0.835 | C41: 168.7 | D41: 0.022 | F41: 4.175 | G41: 3.7114 | H41: 0.8889580838
A42: 5 | B42: 0.835 | C42: 161.3 | D42: 0.023 | F42: 4.175 | G42: 3.7099 | H42: 0.8885988024
A43: 5 | B43: 0.835 | C43: 155.3 | D43: 0.024 | F43: 4.175 | G43: 3.7272 | H43: 0.892742515
A44: 5 | B44: 0.835 | C44: 153.7 | D44: 0.025 | F44: 4.175 | G44: 3.8425 | H44: 0.9203592814
A46: 9 | B46: 0.035 | C46: 197.1 | D46: 0.001 | F46: =A46*B46 -> 0.315 | G46: =C46*D46 -> 0.1971 | H46: =G46/F46 -> 0.6257142857
A47: 9 | B47: 0.058 | C47: 197.1 | D47: 0.002 | F47: 0.522 | G47: 0.3942 | H47: 0.7551724138
A48: 9 | B48: 0.082 | C48: 197.1 | D48: 0.003 | F48: 0.738 | G48: 0.5913 | H48: 0.8012195122
A49: 9 | B49: 0.104 | C49: 197.1 | D49: 0.004 | F49: 0.936 | G49: 0.7884 | H49: 0.8423076923
A50: 9 | B50: 0.128 | C50: 197.1 | D50: 0.005 | F50: 1.152 | G50: 0.9855 | H50: 0.85546875
A51: 9 | B51: 0.151 | C51: 197.1 | D51: 0.006 | F51: 1.359 | G51: 1.1826 | H51: 0.8701986755
A52: 9 | B52: 0.174 | C52: 197.2 | D52: 0.007 | F52: 1.566 | G52: 1.3804 | H52: 0.8814814815
A53: 9 | B53: 0.199 | C53: 197.2 | D53: 0.008 | F53: 1.791 | G53: 1.5776 | H53: 0.8808486879
A54: 9 | B54: 0.222 | C54: 197.2 | D54: 0.009 | F54: 1.998 | G54: 1.7748 | H54: 0.8882882883
A55: 9 | B55: 0.245 | C55: 197.2 | D55: 0.01 | F55: 2.205 | G55: 1.972 | H55: 0.8943310658
A56: 9 | B56: 0.268 | C56: 197.2 | D56: 0.011 | F56: 2.412 | G56: 2.1692 | H56: 0.8993366501
A57: 9 | B57: 0.292 | C57: 197.2 | D57: 0.012 | F57: 2.628 | G57: 2.3664 | H57: 0.900456621
A58: 9 | B58: 0.316 | C58: 197.2 | D58: 0.013 | F58: 2.844 | G58: 2.5636 | H58: 0.9014064698
A59: 9 | B59: 0.34 | C59: 197.3 | D59: 0.014 | F59: 3.06 | G59: 2.7622 | H59: 0.9026797386
A60: 9 | B60: 0.363 | C60: 197.3 | D60: 0.015 | F60: 3.267 | G60: 2.9595 | H60: 0.9058769513
A61: 9 | B61: 0.388 | C61: 197.3 | D61: 0.016 | F61: 3.492 | G61: 3.1568 | H61: 0.9040091638
A62: 9 | B62: 0.412 | C62: 197.3 | D62: 0.017 | F62: 3.708 | G62: 3.3541 | H62: 0.9045577131
A63: 9 | B63: 0.436 | C63: 197.3 | D63: 0.018 | F63: 3.924 | G63: 3.5514 | H63: 0.9050458716
A64: 9 | B64: 0.463 | C64: 197.3 | D64: 0.019 | F64: 4.167 | G64: 3.7487 | H64: 0.8996160307
A65: 9 | B65: 0.467 | C65: 189.2 | D65: 0.02 | F65: 4.203 | G65: 3.784 | H65: 0.9003093029
A66: 9 | B66: 0.467 | C66: 180.9 | D66: 0.021 | F66: 4.203 | G66: 3.7989 | H66: 0.9038543897
A67: 9 | B67: 0.468 | C67: 173.1 | D67: 0.022 | F67: 4.212 | G67: 3.8082 | H67: 0.9041310541
A68: 9 | B68: 0.47 | C68: 166.2 | D68: 0.023 | F68: 4.23 | G68: 3.8226 | H68: 0.9036879433
A69: 9 | B69: 0.47 | C69: 160 | D69: 0.024 | F69: 4.23 | G69: 3.84 | H69: 0.9078014184
A70: 9 | B70: 0.471 | C70: 155.7 | D70: 0.025 | F70: 4.239 | G70: 3.8925 | H70: 0.9182590234
A72: 12 | B72: 0.028 | C72: 197.2 | D72: 0.001 | F72: =A72*B72 -> 0.336 | G72: =C72*D72 -> 0.1972 | H72: =G72/F72 -> 0.5869047619
A73: 12 | B73: 0.046 | C73: 197.2 | D73: 0.002 | F73: 0.552 | G73: 0.3944 | H73: 0.7144927536
A74: 12 | B74: 0.063 | C74: 197.2 | D74: 0.003 | F74: 0.756 | G74: 0.5916 | H74: 0.7825396825
A75: 12 | B75: 0.081 | C75: 197.2 | D75: 0.004 | F75: 0.972 | G75: 0.7888 | H75: 0.8115226337
A76: 12 | B76: 0.098 | C76: 197.2 | D76: 0.005 | F76: 1.176 | G76: 0.986 | H76: 0.8384353741
A77: 12 | B77: 0.116 | C77: 197.2 | D77: 0.006 | F77: 1.392 | G77: 1.1832 | H77: 0.85
A78: 12 | B78: 0.133 | C78: 197.2 | D78: 0.007 | F78: 1.596 | G78: 1.3804 | H78: 0.8649122807
A79: 12 | B79: 0.15 | C79: 197.2 | D79: 0.008 | F79: 1.8 | G79: 1.5776 | H79: 0.8764444444
A80: 12 | B80: 0.168 | C80: 197.2 | D80: 0.009 | F80: 2.016 | G80: 1.7748 | H80: 0.8803571429
A81: 12 | B81: 0.185 | C81: 197.2 | D81: 0.01 | F81: 2.22 | G81: 1.972 | H81: 0.8882882883
A82: 12 | B82: 0.203 | C82: 197.2 | D82: 0.011 | F82: 2.436 | G82: 2.1692 | H82: 0.8904761905
A83: 12 | B83: 0.221 | C83: 197.2 | D83: 0.012 | F83: 2.652 | G83: 2.3664 | H83: 0.8923076923
A84: 12 | B84: 0.238 | C84: 197.2 | D84: 0.013 | F84: 2.856 | G84: 2.5636 | H84: 0.8976190476
A85: 12 | B85: 0.256 | C85: 197.2 | D85: 0.014 | F85: 3.072 | G85: 2.7608 | H85: 0.8986979167
A86: 12 | B86: 0.274 | C86: 197.3 | D86: 0.015 | F86: 3.288 | G86: 2.9595 | H86: 0.9000912409
A87: 12 | B87: 0.292 | C87: 197.3 | D87: 0.016 | F87: 3.504 | G87: 3.1568 | H87: 0.900913242
A88: 12 | B88: 0.31 | C88: 197.3 | D88: 0.017 | F88: 3.72 | G88: 3.3541 | H88: 0.9016397849
A89: 12 | B89: 0.328 | C89: 197.3 | D89: 0.018 | F89: 3.936 | G89: 3.5514 | H89: 0.9022865854
A90: 12 | B90: 0.346 | C90: 197.3 | D90: 0.019 | F90: 4.152 | G90: 3.7487 | H90: 0.9028660886
A91: 12 | B91: 0.357 | C91: 192.9 | D91: 0.02 | F91: 4.284 | G91: 3.858 | H91: 0.9005602241
A92: 12 | B92: 0.357 | C92: 184 | D92: 0.021 | F92: 4.284 | G92: 3.864 | H92: 0.9019607843
A93: 12 | B93: 0.356 | C93: 175.8 | D93: 0.022 | F93: 4.272 | G93: 3.8676 | H93: 0.9053370787
A94: 12 | B94: 0.356 | C94: 168.5 | D94: 0.023 | F94: 4.272 | G94: 3.8755 | H94: 0.9071863296
A95: 12 | B95: 0.356 | C95: 161.7 | D95: 0.024 | F95: 4.272 | G95: 3.8808 | H95: 0.9084269663
A96: 12 | B96: 0.356 | C96: 156.4 | D96: 0.025 | F96: 4.272 | G96: 3.91 | H96: 0.9152621723

Sheet Rev. B
A1: Input Voltage | B1: Input Current | C1: Output Voltage | D1: Output Current | F1: Input Power | G1: Output Power | H1: % Efficiency | J1: Input Voltage | K1: Input Current | L1: Output Voltage | M1: Output Current | O1: Input Power | P1: Output Power | Q1: % Efficiency
A2: 3 | B2: 0.099 | C2: 196.5 | D2: 0.001 | F2: =A2*B2 -> 0.297 | G2: =C2*D2 -> 0.1965 | H2: =G2/F2 -> 0.6616161616 | J2: 3 | K2: 0.085 | L2: 171.4 | M2: 0.001 | O2: =J2*K2 -> 0.255 | P2: =L2*M2 -> 0.1714 | Q2: =P2/O2 -> 0.6721568627
A3: 3 | B3: 0.175 | C3: 196.5 | D3: 0.002 | F3: =A3*B3 -> 0.525 | G3: =C3*D3 -> 0.393 | H3: =G3/F3 -> 0.7485714286 | J3: 3 | K3: 0.151 | L3: 171.4 | M3: 0.002 | O3: =J3*K3 -> 0.453 | P3: =L3*M3 -> 0.3428 | Q3: =P3/O3 -> 0.7567328918
A4: 3 | B4: 0.251 | C4: 196.5 | D4: 0.003 | F4: =A4*B4 -> 0.753 | G4: =C4*D4 -> 0.5895 | H4: =G4/F4 -> 0.7828685259 | J4: 3 | K4: 0.218 | L4: 171.4 | M4: 0.003 | O4: =J4*K4 -> 0.654 | P4: =L4*M4 -> 0.5142 | Q4: =P4/O4 -> 0.7862385321
A5: 3 | B5: 0.332 | C5: 196.5 | D5: 0.004 | F5: 0.996 | G5: 0.786 | H5: 0.7891566265 | J5: 3 | K5: 0.286 | L5: 171.4 | M5: 0.004 | O5: 0.858 | P5: 0.6856 | Q5: 0.7990675991
A6: 3 | B6: 0.412 | C6: 196.5 | D6: 0.005 | F6: 1.236 | G6: 0.9825 | H6: 0.7949029126 | J6: 3 | K6: 0.358 | L6: 171.4 | M6: 0.005 | O6: 1.074 | P6: 0.857 | Q6: 0.7979515829
A7: 3 | B7: 0.496 | C7: 196.6 | D7: 0.006 | F7: 1.488 | G7: 1.1796 | H7: 0.7927419355 | J7: 3 | K7: 0.429 | L7: 171.4 | M7: 0.006 | O7: 1.287 | P7: 1.0284 | Q7: 0.7990675991
A8: 3 | B8: 0.586 | C8: 196.6 | D8: 0.007 | F8: 1.758 | G8: 1.3762 | H8: 0.7828213879 | J8: 3 | K8: 0.505 | L8: 171.5 | M8: 0.007 | O8: 1.515 | P8: 1.2005 | Q8: 0.7924092409
A9: 3 | B9: 0.678 | C9: 196.7 | D9: 0.008 | F9: 2.034 | G9: 1.5736 | H9: 0.7736479843 | J9: 3 | K9: 0.582 | L9: 171.5 | M9: 0.008 | O9: 1.746 | P9: 1.372 | Q9: 0.7857961054
A10: 3 | B10: 0.774 | C10: 196.7 | D10: 0.009 | F10: 2.322 | G10: 1.7703 | H10: 0.7624031008 | J10: 3 | K10: 0.663 | L10: 171.5 | M10: 0.009 | O10: 1.989 | P10: 1.5435 | Q10: 0.7760180995
A11: 3 | B11: 0.861 | C11: 196.7 | D11: 0.01 | F11: 2.583 | G11: 1.967 | H11: 0.7615176152 | J11: 3 | K11: 0.746 | L11: 171.5 | M11: 0.01 | O11: 2.238 | P11: 1.715 | Q11: 0.7663092046
A12: 3 | B12: 0.967 | C12: 196.8 | D12: 0.011 | F12: 2.901 | G12: 2.1648 | H12: 0.7462254395 | J12: 3 | K12: 0.83 | L12: 171.5 | M12: 0.011 | O12: 2.49 | P12: 1.8865 | Q12: 0.7576305221
A13: 3 | B13: 1.068 | C13: 196.8 | D13: 0.012 | F13: 3.204 | G13: 2.3616 | H13: 0.7370786517 | J13: 3 | K13: 0.917 | L13: 171.5 | M13: 0.012 | O13: 2.751 | P13: 2.058 | Q13: 0.7480916031
A14: 3 | B14: 1.169 | C14: 196.9 | D14: 0.013 | F14: 3.507 | G14: 2.5597 | H14: 0.729883091 | J14: 3 | K14: 1.006 | L14: 171.5 | M14: 0.013 | O14: 3.018 | P14: 2.2295 | Q14: 0.7387342611
A15: 3 | B15: 1.274 | C15: 196.9 | D15: 0.014 | F15: 3.822 | G15: 2.7566 | H15: 0.7212454212 | J15: 3 | K15: 1.096 | L15: 171.5 | M15: 0.014 | O15: 3.288 | P15: 2.401 | Q15: 0.7302311436
A16: 3 | B16: 1.386 | C16: 196.9 | D16: 0.015 | F16: 4.158 | G16: 2.9535 | H16: 0.7103174603 | J16: 3 | K16: 1.188 | L16: 171.5 | M16: 0.015 | O16: 3.564 | P16: 2.5725 | Q16: 0.7218013468
A17: 3 | B17: 1.505 | C17: 197 | D17: 0.016 | F17: 4.515 | G17: 3.152 | H17: 0.6981173865 | J17: 3 | K17: 1.282 | L17: 171.4 | M17: 0.016 | O17: 3.846 | P17: 2.7424 | Q17: 0.7130525221
A18: 3 | B18: 1.643 | C18: 197 | D18: 0.017 | F18: 4.929 | G18: 3.349 | H18: 0.6794481639 | J18: 3 | K18: 1.383 | L18: 171.4 | M18: 0.017 | O18: 4.149 | P18: 2.9138 | Q18: 0.7022897084
A19: 3 | B19: 1.821 | C19: 197.1 | D19: 0.018 | F19: =A19*B19 -> 5.463 | G19: =C19*D19 -> 3.5478 | H19: =G19/F19 -> 0.6494233937 | J19: 3 | K19: 1.49 | L19: 171.4 | M19: 0.018 | O19: 4.47 | P19: 3.0852 | Q19: 0.6902013423
A21: 5 | B21: 0.059 | C21: 196.7 | D21: 0.001 | F21: =A21*B21 -> 0.295 | G21: =C21*D21 -> 0.1967 | H21: =G21/F21 -> 0.666779661 | J21: 5 | K21: 0.051 | L21: 171.6 | M21: 0.001 | O21: =J21*K21 -> 0.255 | P21: =L21*M21 -> 0.1716 | Q21: =P21/O21 -> 0.6729411765
A22: 5 | B22: 0.101 | C22: 196.7 | D22: 0.002 | F22: 0.505 | G22: 0.3934 | H22: 0.779009901 | J22: 5 | K22: 0.088 | L22: 171.6 | M22: 0.002 | O22: 0.44 | P22: 0.3432 | Q22: 0.78
A23: 5 | B23: 0.143 | C23: 196.7 | D23: 0.003 | F23: 0.715 | G23: 0.5901 | H23: 0.8253146853 | J23: 5 | K23: 0.124 | L23: 171.6 | M23: 0.003 | O23: 0.62 | P23: 0.5148 | Q23: 0.8303225806
A24: 5 | B24: 0.185 | C24: 196.8 | D24: 0.004 | F24: 0.925 | G24: 0.7872 | H24: 0.851027027 | J24: 5 | K24: 0.161 | L24: 171.6 | M24: 0.004 | O24: 0.805 | P24: 0.6864 | Q24: 0.8526708075
A25: 5 | B25: 0.229 | C25: 196.8 | D25: 0.005 | F25: 1.145 | G25: 0.984 | H25: 0.8593886463 | J25: 5 | K25: 0.198 | L25: 171.6 | M25: 0.005 | O25: 0.99 | P25: 0.858 | Q25: 0.8666666667
A26: 5 | B26: 0.272 | C26: 196.8 | D26: 0.006 | F26: 1.36 | G26: 1.1808 | H26: 0.8682352941 | J26: 5 | K26: 0.234 | L26: 171.6 | M26: 0.006 | O26: 1.17 | P26: 1.0296 | Q26: 0.88
A27: 5 | B27: 0.314 | C27: 196.8 | D27: 0.007 | F27: 1.57 | G27: 1.3776 | H27: 0.8774522293 | J27: 5 | K27: 0.271 | L27: 171.6 | M27: 0.007 | O27: 1.355 | P27: 1.2012 | Q27: 0.8864944649
A28: 5 | B28: 0.356 | C28: 196.8 | D28: 0.008 | F28: 1.78 | G28: 1.5744 | H28: 0.884494382 | J28: 5 | K28: 0.308 | L28: 171.6 | M28: 0.008 | O28: 1.54 | P28: 1.3728 | Q28: 0.8914285714
A29: 5 | B29: 0.4 | C29: 196.8 | D29: 0.009 | F29: 2 | G29: 1.7712 | H29: 0.8856 | J29: 5 | K29: 0.346 | L29: 171.6 | M29: 0.009 | O29: 1.73 | P29: 1.5444 | Q29: 0.892716763
A30: 5 | B30: 0.442 | C30: 196.8 | D30: 0.01 | F30: 2.21 | G30: 1.968 | H30: 0.8904977376 | J30: 5 | K30: 0.383 | L30: 171.6 | M30: 0.01 | O30: 1.915 | P30: 1.716 | Q30: 0.8960835509
A31: 5 | B31: 0.485 | C31: 196.9 | D31: 0.011 | F31: 2.425 | G31: 2.1659 | H31: 0.8931546392 | J31: 5 | K31: 0.42 | L31: 171.6 | M31: 0.011 | O31: 2.1 | P31: 1.8876 | Q31: 0.8988571429
A32: 5 | B32: 0.529 | C32: 196.9 | D32: 0.012 | F32: 2.645 | G32: 2.3628 | H32: 0.8933081285 | J32: 5 | K32: 0.458 | L32: 171.6 | M32: 0.012 | O32: 2.29 | P32: 2.0592 | Q32: 0.8992139738
A33: 5 | B33: 0.574 | C33: 196.9 | D33: 0.013 | F33: 2.87 | G33: 2.5597 | H33: 0.8918815331 | J33: 5 | K33: 0.496 | L33: 171.6 | M33: 0.013 | O33: 2.48 | P33: 2.2308 | Q33: 0.899516129
A34: 5 | B34: 0.618 | C34: 196.9 | D34: 0.014 | F34: 3.09 | G34: 2.7566 | H34: 0.8921035599 | J34: 5 | K34: 0.532 | L34: 171.7 | M34: 0.014 | O34: 2.66 | P34: 2.4038 | Q34: 0.9036842105
A35: 5 | B35: 0.662 | C35: 196.9 | D35: 0.015 | F35: 3.31 | G35: 2.9535 | H35: 0.8922960725 | J35: 5 | K35: 0.571 | L35: 171.7 | M35: 0.015 | O35: 2.855 | P35: 2.5755 | Q35: 0.9021015762
A36: 5 | B36: 0.706 | C36: 196.9 | D36: 0.016 | F36: 3.53 | G36: 3.1504 | H36: 0.8924645892 | J36: 5 | K36: 0.61 | L36: 171.7 | M36: 0.016 | O36: 3.05 | P36: 2.7472 | Q36: 0.9007213115
A37: 5 | B37: 0.751 | C37: 196.9 | D37: 0.017 | F37: 3.755 | G37: 3.3473 | H37: 0.891424767 | J37: 5 | K37: 0.649 | L37: 171.7 | M37: 0.017 | O37: 3.245 | P37: 2.9189 | Q37: 0.8995069337
A38: 5 | B38: 0.797 | C38: 196.9 | D38: 0.018 | F38: 3.985 | G38: 3.5442 | H38: 0.8893851945 | J38: 5 | K38: 0.686 | L38: 171.7 | M38: 0.018 | O38: 3.43 | P38: 3.0906 | Q38: 0.9010495627
A39: 5 | B39: 0.842 | C39: 196.9 | D39: 0.019 | F39: 4.21 | G39: 3.7411 | H39: 0.8886223278 | J39: 5 | K39: 0.725 | L39: 171.7 | M39: 0.019 | O39: 3.625 | P39: 3.2623 | Q39: 0.8999448276
A40: 5 | B40: 0.888 | C40: 196.9 | D40: 0.02 | F40: 4.44 | G40: 3.938 | H40: 0.8869369369 | J40: 5 | K40: 0.764 | L40: 171.7 | M40: 0.02 | O40: 3.82 | P40: 3.434 | Q40: 0.8989528796
A41: 5 | B41: 0.936 | C41: 196.9 | D41: 0.021 | F41: 4.68 | G41: 4.1349 | H41: 0.883525641 | J41: 5 | K41: 0.802 | L41: 171.7 | M41: 0.021 | O41: 4.01 | P41: 3.6057 | Q41: 0.8991770574
A42: 5 | B42: 0.946 | C42: 190.2 | D42: 0.022 | F42: 4.73 | G42: 4.1844 | H42: 0.8846511628 | J42: 5 | K42: 0.841 | L42: 171.7 | M42: 0.022 | O42: 4.205 | P42: 3.7774 | Q42: 0.8983115339
A43: 5 | B43: 0.947 | C43: 182.5 | D43: 0.023 | F43: 4.735 | G43: 4.1975 | H43: 0.8864836325 | J43: 5 | K43: 0.88 | L43: 171.7 | M43: 0.023 | O43: 4.4 | P43: 3.9491 | Q43: 0.8975227273
A44: 5 | B44: 0.948 | C44: 175.5 | D44: 0.024 | F44: 4.74 | G44: 4.212 | H44: 0.8886075949 | J44: 5 | K44: 0.92 | L44: 171.7 | M44: 0.024 | O44: 4.6 | P44: 4.1208 | Q44: 0.895826087
A45: 5 | B45: 0.95 | C45: 169.1 | D45: 0.025 | F45: 4.75 | G45: 4.2275 | H45: 0.89 | J45: 5 | K45: 0.961 | L45: 171.7 | M45: 0.025 | O45: 4.805 | P45: 4.2925 | Q45: 0.8933402706
A47: 9 | B47: 0.035 | C47: 196.9 | D47: 0.001 | F47: =A47*B47 -> 0.315 | G47: =C47*D47 -> 0.1969 | H47: =G47/F47 -> 0.6250793651 | J47: 9 | K47: 0.03 | L47: 171.8 | M47: 0.001 | O47: =J47*K47 -> 0.27 | P47: =L47*M47 -> 0.1718 | Q47: =P47/O47 -> 0.6362962963
A48: 9 | B48: 0.059 | C48: 196.9 | D48: 0.002 | F48: 0.531 | G48: 0.3938 | H48: 0.7416195857 | J48: 9 | K48: 0.051 | L48: 171.7 | M48: 0.002 | O48: 0.459 | P48: 0.3434 | Q48: 0.7481481481
A49: 9 | B49: 0.082 | C49: 196.9 | D49: 0.003 | F49: 0.738 | G49: 0.5907 | H49: 0.8004065041 | J49: 9 | K49: 0.071 | L49: 171.8 | M49: 0.003 | O49: 0.639 | P49: 0.5154 | Q49: 0.80657277
A50: 9 | B50: 0.106 | C50: 196.9 | D50: 0.004 | F50: 0.954 | G50: 0.7876 | H50: 0.8255765199 | J50: 9 | K50: 0.091 | L50: 171.8 | M50: 0.004 | O50: 0.819 | P50: 0.6872 | Q50: 0.8390720391
A51: 9 | B51: 0.128 | C51: 196.9 | D51: 0.005 | F51: 1.152 | G51: 0.9845 | H51: 0.8546006944 | J51: 9 | K51: 0.112 | L51: 171.8 | M51: 0.005 | O51: 1.008 | P51: 0.859 | Q51: 0.8521825397
A52: 9 | B52: 0.152 | C52: 196.9 | D52: 0.006 | F52: 1.368 | G52: 1.1814 | H52: 0.8635964912 | J52: 9 | K52: 0.132 | L52: 171.8 | M52: 0.006 | O52: 1.188 | P52: 1.0308 | Q52: 0.8676767677
A53: 9 | B53: 0.175 | C53: 196.9 | D53: 0.007 | F53: 1.575 | G53: 1.3783 | H53: 0.8751111111 | J53: 9 | K53: 0.152 | L53: 171.8 | M53: 0.007 | O53: 1.368 | P53: 1.2026 | Q53: 0.8790935673
A54: 9 | B54: 0.199 | C54: 196.9 | D54: 0.008 | F54: 1.791 | G54: 1.5752 | H54: 0.8795086544 | J54: 9 | K54: 0.172 | L54: 171.8 | M54: 0.008 | O54: 1.548 | P54: 1.3744 | Q54: 0.8878552972
A55: 9 | B55: 0.222 | C55: 196.9 | D55: 0.009 | F55: 1.998 | G55: 1.7721 | H55: 0.8869369369 | J55: 9 | K55: 0.192 | L55: 171.8 | M55: 0.009 | O55: 1.728 | P55: 1.5462 | Q55: 0.8947916667
A56: 9 | B56: 0.245 | C56: 196.9 | D56: 0.01 | F56: 2.205 | G56: 1.969 | H56: 0.8929705215 | J56: 9 | K56: 0.213 | L56: 171.8 | M56: 0.01 | O56: 1.917 | P56: 1.718 | Q56: 0.8961919666
A57: 9 | B57: 0.268 | C57: 196.9 | D57: 0.011 | F57: 2.412 | G57: 2.1659 | H57: 0.8979684909 | J57: 9 | K57: 0.233 | L57: 171.8 | M57: 0.011 | O57: 2.097 | P57: 1.8898 | Q57: 0.9011921793
A58: 9 | B58: 0.292 | C58: 196.9 | D58: 0.012 | F58: 2.628 | G58: 2.3628 | H58: 0.899086758 | J58: 9 | K58: 0.254 | L58: 171.8 | M58: 0.012 | O58: 2.286 | P58: 2.0616 | Q58: 0.9018372703
A59: 9 | B59: 0.316 | C59: 196.9 | D59: 0.013 | F59: 2.844 | G59: 2.5597 | H59: 0.9000351617 | J59: 9 | K59: 0.274 | L59: 171.8 | M59: 0.013 | O59: 2.466 | P59: 2.2334 | Q59: 0.9056772101
A60: 9 | B60: 0.339 | C60: 197 | D60: 0.014 | F60: 3.051 | G60: 2.758 | H60: 0.9039659128 | J60: 9 | K60: 0.294 | L60: 171.8 | M60: 0.014 | O60: 2.646 | P60: 2.4052 | Q60: 0.908994709
A61: 9 | B61: 0.363 | C61: 197 | D61: 0.015 | F61: 3.267 | G61: 2.955 | H61: 0.9044995409 | J61: 9 | K61: 0.315 | L61: 171.8 | M61: 0.015 | O61: 2.835 | P61: 2.577 | Q61: 0.908994709
A62: 9 | B62: 0.387 | C62: 197 | D62: 0.016 | F62: 3.483 | G62: 3.152 | H62: 0.9049669825 | J62: 9 | K62: 0.335 | L62: 171.8 | M62: 0.016 | O62: 3.015 | P62: 2.7488 | Q62: 0.911708126
A63: 9 | B63: 0.411 | C63: 197 | D63: 0.017 | F63: 3.699 | G63: 3.349 | H63: 0.9053798324 | J63: 9 | K63: 0.356 | L63: 171.8 | M63: 0.017 | O63: 3.204 | P63: 2.9206 | Q63: 0.9115480649
A64: 9 | B64: 0.434 | C64: 197 | D64: 0.018 | F64: 3.906 | G64: 3.546 | H64: 0.9078341014 | J64: 9 | K64: 0.376 | L64: 171.8 | M64: 0.018 | O64: 3.384 | P64: 3.0924 | Q64: 0.9138297872
A65: 9 | B65: 0.458 | C65: 197 | D65: 0.019 | F65: 4.122 | G65: 3.743 | H65: 0.9080543426 | J65: 9 | K65: 0.397 | L65: 171.8 | M65: 0.019 | O65: 3.573 | P65: 3.2642 | Q65: 0.9135740274
A66: 9 | B66: 0.482 | C66: 197 | D66: 0.02 | F66: 4.338 | G66: 3.94 | H66: 0.908252651 | J66: 9 | K66: 0.417 | L66: 171.8 | M66: 0.02 | O66: 3.753 | P66: 3.436 | Q66: 0.9155342393
A67: 9 | B67: 0.506 | C67: 197 | D67: 0.021 | F67: 4.554 | G67: 4.137 | H67: 0.9084321476 | J67: 9 | K67: 0.438 | L67: 171.8 | M67: 0.021 | O67: 3.942 | P67: 3.6078 | Q67: 0.9152207002
A68: 9 | B68: 0.528 | C68: 196 | D68: 0.022 | F68: 4.752 | G68: 4.312 | H68: 0.9074074074 | J68: 9 | K68: 0.459 | L68: 171.8 | M68: 0.022 | O68: 4.131 | P68: 3.7796 | Q68: 0.9149358509
A69: 9 | B69: 0.528 | C69: 187.8 | D69: 0.023 | F69: 4.752 | G69: 4.3194 | H69: 0.9089646465 | J69: 9 | K69: 0.479 | L69: 171.8 | M69: 0.023 | O69: 4.311 | P69: 3.9514 | Q69: 0.916585479
A70: 9 | B70: 0.528 | C70: 180.2 | D70: 0.024 | F70: 4.752 | G70: 4.3248 | H70: 0.9101010101 | J70: 9 | K70: 0.5 | L70: 171.8 | M70: 0.024 | O70: 4.5 | P70: 4.1232 | Q70: 0.9162666667
A71: 9 | B71: 0.528 | C71: 173.2 | D71: 0.025 | F71: 4.752 | G71: 4.33 | H71: 0.9111952862 | J71: 9 | K71: 0.521 | L71: 171.8 | M71: 0.025 | O71: 4.689 | P71: 4.295 | Q71: 0.9159735551
A73: 12 | B73: 0.027 | C73: 197 | D73: 0.001 | F73: =A73*B73 -> 0.324 | G73: =C73*D73 -> 0.197 | H73: =G73/F73 -> 0.6080246914 | J73: 12 | K73: 0.024 | L73: 171.9 | M73: 0.001 | O73: =J73*K73 -> 0.288 | P73: =L73*M73 -> 0.1719 | Q73: =P73/O73 -> 0.596875
A74: 12 | B74: 0.046 | C74: 197 | D74: 0.002 | F74: 0.552 | G74: 0.394 | H74: 0.7137681159 | J74: 12 | K74: 0.04 | L74: 171.9 | M74: 0.002 | O74: 0.48 | P74: 0.3438 | Q74: 0.71625
A75: 12 | B75: 0.063 | C75: 197 | D75: 0.003 | F75: 0.756 | G75: 0.591 | H75: 0.7817460317 | J75: 12 | K75: 0.055 | L75: 171.9 | M75: 0.003 | O75: 0.66 | P75: 0.5157 | Q75: 0.7813636364
A76: 12 | B76: 0.081 | C76: 197 | D76: 0.004 | F76: 0.972 | G76: 0.788 | H76: 0.8106995885 | J76: 12 | K76: 0.07 | L76: 171.9 | M76: 0.004 | O76: 0.84 | P76: 0.6876 | Q76: 0.8185714286
A77: 12 | B77: 0.098 | C77: 197 | D77: 0.005 | F77: 1.176 | G77: 0.985 | H77: 0.837585034 | J77: 12 | K77: 0.085 | L77: 171.9 | M77: 0.005 | O77: 1.02 | P77: 0.8595 | Q77: 0.8426470588
A78: 12 | B78: 0.116 | C78: 197.1 | D78: 0.006 | F78: 1.392 | G78: 1.1826 | H78: 0.8495689655 | J78: 12 | K78: 0.1 | L78: 171.9 | M78: 0.006 | O78: 1.2 | P78: 1.0314 | Q78: 0.8595
A79: 12 | B79: 0.133 | C79: 197.1 | D79: 0.007 | F79: 1.596 | G79: 1.3797 | H79: 0.8644736842 | J79: 12 | K79: 0.115 | L79: 171.9 | M79: 0.007 | O79: 1.38 | P79: 1.2033 | Q79: 0.8719565217
A80: 12 | B80: 0.15 | C80: 197.1 | D80: 0.008 | F80: 1.8 | G80: 1.5768 | H80: 0.876 | J80: 12 | K80: 0.131 | L80: 171.9 | M80: 0.008 | O80: 1.572 | P80: 1.3752 | Q80: 0.8748091603
A81: 12 | B81: 0.168 | C81: 197.1 | D81: 0.009 | F81: 2.016 | G81: 1.7739 | H81: 0.8799107143 | J81: 12 | K81: 0.146 | L81: 171.9 | M81: 0.009 | O81: 1.752 | P81: 1.5471 | Q81: 0.8830479452
A82: 12 | B82: 0.185 | C82: 197.1 | D82: 0.01 | F82: 2.22 | G82: 1.971 | H82: 0.8878378378 | J82: 12 | K82: 0.161 | L82: 171.9 | M82: 0.01 | O82: 1.932 | P82: 1.719 | Q82: 0.8897515528
A83: 12 | B83: 0.202 | C83: 197.1 | D83: 0.011 | F83: 2.424 | G83: 2.1681 | H83: 0.8944306931 | J83: 12 | K83: 0.176 | L83: 171.9 | M83: 0.011 | O83: 2.112 | P83: 1.8909 | Q83: 0.8953125
A84: 12 | B84: 0.22 | C84: 197.1 | D84: 0.012 | F84: 2.64 | G84: 2.3652 | H84: 0.8959090909 | J84: 12 | K84: 0.191 | L84: 171.9 | M84: 0.012 | O84: 2.292 | P84: 2.0628 | Q84: 0.9
A85: 12 | B85: 0.238 | C85: 197.1 | D85: 0.013 | F85: 2.856 | G85: 2.5623 | H85: 0.8971638655 | J85: 12 | K85: 0.206 | L85: 171.9 | M85: 0.013 | O85: 2.472 | P85: 2.2347 | Q85: 0.9040048544
A86: 12 | B86: 0.255 | C86: 197.1 | D86: 0.014 | F86: 3.06 | G86: 2.7594 | H86: 0.9017647059 | J86: 12 | K86: 0.222 | L86: 171.9 | M86: 0.014 | O86: 2.664 | P86: 2.4066 | Q86: 0.9033783784
A87: 12 | B87: 0.273 | C87: 197.1 | D87: 0.015 | F87: 3.276 | G87: 2.9565 | H87: 0.9024725275 | J87: 12 | K87: 0.237 | L87: 171.9 | M87: 0.015 | O87: 2.844 | P87: 2.5785 | Q87: 0.9066455696
A88: 12 | B88: 0.29 | C88: 197.1 | D88: 0.016 | F88: 3.48 | G88: 3.1536 | H88: 0.9062068966 | J88: 12 | K88: 0.251 | L88: 171.9 | M88: 0.016 | O88: 3.012 | P88: 2.7504 | Q88: 0.9131474104
A89: 12 | B89: 0.308 | C89: 197.1 | D89: 0.017 | F89: 3.696 | G89: 3.3507 | H89: 0.9065746753 | J89: 12 | K89: 0.267 | L89: 171.9 | M89: 0.017 | O89: 3.204 | P89: 2.9223 | Q89: 0.9120786517
A90: 12 | B90: 0.326 | C90: 197.1 | D90: 0.018 | F90: 3.912 | G90: 3.5478 | H90: 0.9069018405 | J90: 12 | K90: 0.283 | L90: 171.9 | M90: 0.018 | O90: 3.396 | P90: 3.0942 | Q90: 0.911130742
A91: 12 | B91: 0.344 | C91: 197.1 | D91: 0.019 | F91: 4.128 | G91: 3.7449 | H91: 0.9071947674 | J91: 12 | K91: 0.298 | L91: 171.9 | M91: 0.019 | O91: 3.576 | P91: 3.2661 | Q91: 0.9133389262
A92: 12 | B92: 0.361 | C92: 197.1 | D92: 0.02 | F92: 4.332 | G92: 3.942 | H92: 0.9099722992 | J92: 12 | K92: 0.313 | L92: 171.9 | M92: 0.02 | O92: 3.756 | P92: 3.438 | Q92: 0.9153354633
A93: 12 | B93: 0.379 | C93: 197.1 | D93: 0.021 | F93: 4.548 | G93: 4.1391 | H93: 0.9100923483 | J93: 12 | K93: 0.328 | L93: 171.9 | M93: 0.021 | O93: 3.936 | P93: 3.6099 | Q93: 0.9171493902
A94: 12 | B94: 0.398 | C94: 197.1 | D94: 0.022 | F94: 4.776 | G94: 4.3362 | H94: 0.9079145729 | J94: 12 | K94: 0.344 | L94: 171.9 | M94: 0.022 | O94: 4.128 | P94: 3.7818 | Q94: 0.9161337209
A95: 12 | B95: 0.41 | C95: 194.4 | D95: 0.023 | F95: 4.92 | G95: 4.4712 | H95: 0.9087804878 | J95: 12 | K95: 0.361 | L95: 171.9 | M95: 0.023 | O95: 4.332 | P95: 3.9537 | Q95: 0.9126731302
A96: 12 | B96: 0.417 | C96: 189.8 | D96: 0.024 | F96: 5.004 | G96: 4.5552 | H96: 0.9103117506 | J96: 12 | K96: 0.376 | L96: 171.9 | M96: 0.024 | O96: 4.512 | P96: 4.1256 | Q96: 0.9143617021
A97: 12 | B97: 0.418 | C97: 183.2 | D97: 0.025 | F97: 5.016 | G97: 4.58 | H97: 0.9130781499 | J97: 12 | K97: 0.391 | L97: 171.9 | M97: 0.025 | O97: 4.692 | P97: 4.2975 | Q97: 0.9159207161

Sheet Rev. C
A1: Input Voltage | B1: Input Current | C1: Output Voltage | D1: Output Current | F1: Input Power | G1: Output Power | H1: % Efficiency
A2: 3 | B2: 0.096 | C2: 196.8 | D2: 0.001 | F2: =A2*B2 -> 0.288 | G2: =C2*D2 -> 0.1968 | H2: =G2/F2 -> 0.6833333333
A3: 3 | B3: 0.168 | C3: 196.8 | D3: 0.002 | F3: =A3*B3 -> 0.504 | G3: =C3*D3 -> 0.3936 | H3: =G3/F3 -> 0.780952381
A4: 3 | B4: 0.241 | C4: 196.8 | D4: 0.003 | F4: =A4*B4 -> 0.723 | G4: =C4*D4 -> 0.5904 | H4: =G4/F4 -> 0.8165975104
A5: 3 | B5: 0.314 | C5: 196.8 | D5: 0.004 | F5: 0.942 | G5: 0.7872 | H5: 0.8356687898
A6: 3 | B6: 0.386 | C6: 196.8 | D6: 0.005 | F6: 1.158 | G6: 0.984 | H6: 0.8497409326
A7: 3 | B7: 0.461 | C7: 196.8 | D7: 0.006 | F7: 1.383 | G7: 1.1808 | H7: 0.8537960954
A8: 3 | B8: 0.535 | C8: 196.8 | D8: 0.007 | F8: 1.605 | G8: 1.3776 | H8: 0.858317757
A9: 3 | B9: 0.609 | C9: 196.8 | D9: 0.008 | F9: 1.827 | G9: 1.5744 | H9: 0.8617405583
A10: 3 | B10: 0.684 | C10: 196.8 | D10: 0.009 | F10: 2.052 | G10: 1.7712 | H10: 0.8631578947
A11: 3 | B11: 0.759 | C11: 196.8 | D11: 0.01 | F11: 2.277 | G11: 1.968 | H11: 0.8642951252
A12: 3 | B12: 0.835 | C12: 196.8 | D12: 0.011 | F12: 2.505 | G12: 2.1648 | H12: 0.8641916168
A13: 3 | B13: 0.912 | C13: 196.8 | D13: 0.012 | F13: 2.736 | G13: 2.3616 | H13: 0.8631578947
A14: 3 | B14: 0.989 | C14: 196.8 | D14: 0.013 | F14: 2.967 | G14: 2.5584 | H14: 0.8622851365
A15: 3 | B15: 1.067 | C15: 196.8 | D15: 0.014 | F15: 3.201 | G15: 2.7552 | H15: 0.8607310216
A16: 3 | B16: 1.145 | C16: 196.9 | D16: 0.015 | F16: 3.435 | G16: 2.9535 | H16: 0.8598253275
A17: 3 | B17: 1.224 | C17: 196.9 | D17: 0.016 | F17: 3.672 | G17: 3.1504 | H17: 0.8579520697
A18: 3 | B18: 1.304 | C18: 196.9 | D18: 0.017 | F18: 3.912 | G18: 3.3473 | H18: 0.8556492843
A19: 3 | B19: 1.384 | C19: 196.9 | D19: 0.018 | F19: 4.152 | G19: 3.5442 | H19: 0.8536127168
A20: 3 | B20: 1.464 | C20: 197 | D20: 0.019 | F20: =A20*B20 -> 4.392 | G20: =C20*D20 -> 3.743 | H20: =G20/F20 -> 0.8522313297
A21: 3 | B21: 1.545 | C21: 197 | D21: 0.02 | F21: 4.635 | G21: 3.94 | H21: 0.8500539374
A22: 3 | B22: 1.61 | C22: 194.8 | D22: 0.021 | F22: 4.83 | G22: 4.0908 | H22: 0.8469565217
A23: 3 | B23: 1.605 | C23: 185.8 | D23: 0.022 | F23: 4.815 | G23: 4.0876 | H23: 0.8489304258
A24: 3 | B24: 1.602 | C24: 177.8 | D24: 0.023 | F24: =A24*B24 -> 4.806 | G24: =C24*D24 -> 4.0894 | H24: =G24/F24 -> 0.8508947149
A25: 3 | B25: 1.601 | C25: 170.5 | D25: 0.024 | F25: 4.803 | G25: 4.092 | H25: 0.8519675203
A26: 3 | B26: 1.6 | C26: 163.8 | D26: 0.025 | F26: 4.8 | G26: 4.095 | H26: 0.853125
A28: 5 | B28: 0.06 | C28: 196.8 | D28: 0.001 | F28: =A28*B28 -> 0.3 | G28: =C28*D28 -> 0.1968 | H28: =G28/F28 -> 0.656
A29: 5 | B29: 0.102 | C29: 196.8 | D29: 0.002 | F29: 0.51 | G29: 0.3936 | H29: 0.7717647059
A30: 5 | B30: 0.145 | C30: 196.8 | D30: 0.003 | F30: 0.725 | G30: 0.5904 | H30: 0.8143448276
A31: 5 | B31: 0.188 | C31: 196.8 | D31: 0.004 | F31: 0.94 | G31: 0.7872 | H31: 0.8374468085
A32: 5 | B32: 0.231 | C32: 196.8 | D32: 0.005 | F32: 1.155 | G32: 0.984 | H32: 0.8519480519
A33: 5 | B33: 0.273 | C33: 196.8 | D33: 0.006 | F33: 1.365 | G33: 1.1808 | H33: 0.8650549451
A34: 5 | B34: 0.316 | C34: 196.8 | D34: 0.007 | F34: 1.58 | G34: 1.3776 | H34: 0.8718987342
A35: 5 | B35: 0.359 | C35: 196.8 | D35: 0.008 | F35: 1.795 | G35: 1.5744 | H35: 0.8771030641
A36: 5 | B36: 0.402 | C36: 196.9 | D36: 0.009 | F36: 2.01 | G36: 1.7721 | H36: 0.881641791
A37: 5 | B37: 0.446 | C37: 196.9 | D37: 0.01 | F37: 2.23 | G37: 1.969 | H37: 0.8829596413
A38: 5 | B38: 0.49 | C38: 196.9 | D38: 0.011 | F38: 2.45 | G38: 2.1659 | H38: 0.8840408163
A39: 5 | B39: 0.533 | C39: 196.9 | D39: 0.012 | F39: 2.665 | G39: 2.3628 | H39: 0.8866041276
A40: 5 | B40: 0.577 | C40: 196.9 | D40: 0.013 | F40: 2.885 | G40: 2.5597 | H40: 0.8872443674
A41: 5 | B41: 0.621 | C41: 196.9 | D41: 0.014 | F41: 3.105 | G41: 2.7566 | H41: 0.8877938808
A42: 5 | B42: 0.665 | C42: 197 | D42: 0.015 | F42: 3.325 | G42: 2.955 | H42: 0.8887218045
A43: 5 | B43: 0.709 | C43: 197 | D43: 0.016 | F43: 3.545 | G43: 3.152 | H43: 0.8891396333
A44: 5 | B44: 0.755 | C44: 197 | D44: 0.017 | F44: 3.775 | G44: 3.349 | H44: 0.8871523179
A45: 5 | B45: 0.799 | C45: 197 | D45: 0.018 | F45: 3.995 | G45: 3.546 | H45: 0.8876095119
A46: 5 | B46: 0.844 | C46: 197 | D46: 0.019 | F46: 4.22 | G46: 3.743 | H46: 0.8869668246
A47: 5 | B47: 0.889 | C47: 197 | D47: 0.02 | F47: 4.445 | G47: 3.94 | H47: 0.8863892013
A48: 5 | B48: 0.934 | C48: 197.1 | D48: 0.021 | F48: 4.67 | G48: 4.1391 | H48: 0.8863169165
A49: 5 | B49: 0.947 | C49: 190.8 | D49: 0.022 | F49: 4.735 | G49: 4.1976 | H49: 0.8865047518
A50: 5 | B50: 0.946 | C50: 182.6 | D50: 0.023 | F50: 4.73 | G50: 4.1998 | H50: 0.8879069767
A51: 5 | B51: 0.945 | C51: 175 | D51: 0.024 | F51: 4.725 | G51: 4.2 | H51: 0.8888888889
A52: 5 | B52: 0.944 | C52: 168.4 | D52: 0.025 | F52: =A52*B52 -> 4.72 | G52: =C52*D52 -> 4.21 | H52: =G52/F52 -> 0.8919491525
A54: 9 | B54: 0.036 | C54: 197.1 | D54: 0.001 | F54: =A54*B54 -> 0.324 | G54: =C54*D54 -> 0.1971 | H54: =G54/F54 -> 0.6083333333
A55: 9 | B55: 0.059 | C55: 197.1 | D55: 0.002 | F55: 0.531 | G55: 0.3942 | H55: 0.7423728814
A56: 9 | B56: 0.082 | C56: 197 | D56: 0.003 | F56: 0.738 | G56: 0.591 | H56: 0.8008130081
A57: 9 | B57: 0.106 | C57: 197.1 | D57: 0.004 | F57: 0.954 | G57: 0.7884 | H57: 0.8264150943
A58: 9 | B58: 0.13 | C58: 197 | D58: 0.005 | F58: 1.17 | G58: 0.985 | H58: 0.8418803419
A59: 9 | B59: 0.153 | C59: 197.1 | D59: 0.006 | F59: 1.377 | G59: 1.1826 | H59: 0.8588235294
A60: 9 | B60: 0.177 | C60: 197 | D60: 0.007 | F60: 1.593 | G60: 1.379 | H60: 0.8656622724
A61: 9 | B61: 0.2 | C61: 197.1 | D61: 0.008 | F61: 1.8 | G61: 1.5768 | H61: 0.876
A62: 9 | B62: 0.224 | C62: 197.1 | D62: 0.009 | F62: 2.016 | G62: 1.7739 | H62: 0.8799107143
A63: 9 | B63: 0.247 | C63: 197.1 | D63: 0.01 | F63: 2.223 | G63: 1.971 | H63: 0.8866396761
A64: 9 | B64: 0.271 | C64: 197.1 | D64: 0.011 | F64: 2.439 | G64: 2.1681 | H64: 0.8889298893
A65: 9 | B65: 0.295 | C65: 197.1 | D65: 0.012 | F65: 2.655 | G65: 2.3652 | H65: 0.8908474576
A66: 9 | B66: 0.319 | C66: 197.1 | D66: 0.013 | F66: 2.871 | G66: 2.5623 | H66: 0.892476489
A67: 9 | B67: 0.343 | C67: 197.1 | D67: 0.014 | F67: 3.087 | G67: 2.7594 | H67: 0.893877551
A68: 9 | B68: 0.367 | C68: 197.1 | D68: 0.015 | F68: 3.303 | G68: 2.9565 | H68: 0.8950953678
A69: 9 | B69: 0.391 | C69: 197.1 | D69: 0.016 | F69: 3.519 | G69: 3.1536 | H69: 0.8961636829
A70: 9 | B70: 0.415 | C70: 197.1 | D70: 0.017 | F70: 3.735 | G70: 3.3507 | H70: 0.8971084337
A71: 9 | B71: 0.439 | C71: 197.1 | D71: 0.018 | F71: 3.951 | G71: 3.5478 | H71: 0.8979498861
A72: 9 | B72: 0.463 | C72: 197.2 | D72: 0.019 | F72: 4.167 | G72: 3.7468 | H72: 0.8991600672
A73: 9 | B73: 0.487 | C73: 197.2 | D73: 0.02 | F73: 4.383 | G73: 3.944 | H73: 0.899840292
A74: 9 | B74: 0.512 | C74: 197.2 | D74: 0.021 | F74: 4.608 | G74: 4.1412 | H74: 0.8986979167
A75: 9 | B75: 0.534 | C75: 196.2 | D75: 0.022 | F75: 4.806 | G75: 4.3164 | H75: 0.8981273408
A76: 9 | B76: 0.535 | C76: 188.2 | D76: 0.023 | F76: 4.815 | G76: 4.3286 | H76: 0.8989823468
A77: 9 | B77: 0.535 | C77: 180.5 | D77: 0.024 | F77: 4.815 | G77: 4.332 | H77: 0.8996884735
A78: 9 | B78: 0.534 | C78: 172.9 | D78: 0.025 | F78: =A78*B78 -> 4.806 | G78: =C78*D78 -> 4.3225 | H78: =G78/F78 -> 0.8993965876
A80: 12 | B80: 0.029 | C80: 197.2 | D80: 0.001 | F80: =A80*B80 -> 0.348 | G80: =C80*D80 -> 0.1972 | H80: =G80/F80 -> 0.5666666667
A81: 12 | B81: 0.046 | C81: 197.2 | D81: 0.002 | F81: 0.552 | G81: 0.3944 | H81: 0.7144927536
A82: 12 | B82: 0.064 | C82: 197.2 | D82: 0.003 | F82: 0.768 | G82: 0.5916 | H82: 0.7703125
A83: 12 | B83: 0.082 | C83: 197.2 | D83: 0.004 | F83: 0.984 | G83: 0.7888 | H83: 0.8016260163
A84: 12 | B84: 0.099 | C84: 197.2 | D84: 0.005 | F84: 1.188 | G84: 0.986 | H84: 0.82996633
A85: 12 | B85: 0.117 | C85: 197.2 | D85: 0.006 | F85: 1.404 | G85: 1.1832 | H85: 0.8427350427
A86: 12 | B86: 0.134 | C86: 197.2 | D86: 0.007 | F86: 1.608 | G86: 1.3804 | H86: 0.8584577114
A87: 12 | B87: 0.152 | C87: 197.2 | D87: 0.008 | F87: 1.824 | G87: 1.5776 | H87: 0.8649122807
A88: 12 | B88: 0.17 | C88: 197.2 | D88: 0.009 | F88: 2.04 | G88: 1.7748 | H88: 0.87
A89: 12 | B89: 0.188 | C89: 197.2 | D89: 0.01 | F89: 2.256 | G89: 1.972 | H89: 0.8741134752
A90: 12 | B90: 0.205 | C90: 197.2 | D90: 0.011 | F90: 2.46 | G90: 2.1692 | H90: 0.8817886179
A91: 12 | B91: 0.223 | C91: 197.2 | D91: 0.012 | F91: 2.676 | G91: 2.3664 | H91: 0.8843049327
A92: 12 | B92: 0.24 | C92: 197.2 | D92: 0.013 | F92: 2.88 | G92: 2.5636 | H92: 0.8901388889
A93: 12 | B93: 0.259 | C93: 197.2 | D93: 0.014 | F93: 3.108 | G93: 2.7608 | H93: 0.8882882883
A94: 12 | B94: 0.277 | C94: 197.3 | D94: 0.015 | F94: 3.324 | G94: 2.9595 | H94: 0.8903429603
A95: 12 | B95: 0.295 | C95: 197.3 | D95: 0.016 | F95: 3.54 | G95: 3.1568 | H95: 0.8917514124
A96: 12 | B96: 0.312 | C96: 197.3 | D96: 0.017 | F96: 3.744 | G96: 3.3541 | H96: 0.8958600427
A97: 12 | B97: 0.331 | C97: 197.3 | D97: 0.018 | F97: 3.972 | G97: 3.5514 | H97: 0.8941087613
A98: 12 | B98: 0.349 | C98: 197.3 | D98: 0.019 | F98: 4.188 | G98: 3.7487 | H98: 0.8951050621
A99: 12 | B99: 0.367 | C99: 197.3 | D99: 0.02 | F99: 4.404 | G99: 3.946 | H99: 0.8960036331
A100: 12 | B100: 0.386 | C100: 197.3 | D100: 0.021 | F100: 4.632 | G100: 4.1433 | H100: 0.8944948187
A101: 12 | B101: 0.405 | C101: 197.4 | D101: 0.022 | F101: 4.86 | G101: 4.3428 | H101: 0.8935802469
A102: 12 | B102: 0.412 | C102: 192 | D102: 0.023 | F102: 4.944 | G102: 4.416 | H102: 0.8932038835
A103: 12 | B103: 0.413 | C103: 184.2 | D103: 0.024 | F103: 4.956 | G103: 4.4208 | H103: 0.8920096852
A104: 12 | B104: 0.412 | C104: 176.8 | D104: 0.025 | F104: 4.944 | G104: 4.42 | H104: 0.894012945

Sheet Charts
